[Event "FIDE World Rapid Chess Championship 2021"]
[White "Teclaf, Pawel"]
[Black "Petrosian, Tigran L."]
[WhiteFideId "1185934"]
[BlackFideId "13301616"]
[WhiteElo "2345"]
[BlackElo "2621"]
[Result "0-1"]
[Round "04"]
[TimeControl "900+10"]
[Date "2021.12.26"]
[WhiteClock "0:00:03"]
[BlackClock "0:00:25"]

1. e4 {[%clk 0:15:21]}  g6 {[%clk 0:15:27]} 2. d4 {[%clk 0:15:21]}  Bg7 {[%clk 0:15:27]} 3. Nc3 {[%clk 0:15:21]}  a6 {[%clk 0:15:27]} 4. Be3 {[%clk 0:15:21]}  b5 {[%clk 0:15:27]} 5. Nf3 {[%clk 0:15:21]}  Bb7 {[%clk 0:15:27]} 6. a4 {[%clk 0:13:49]}  b4 {[%clk 0:15:30]} 7. Nd5 {[%clk 0:13:49]}  e6 {[%clk 0:13:30]} 8. Nxb4 {[%clk 0:13:24]}  Bxe4 {[%clk 0:13:30]} 9. a5 {[%clk 0:13:21]}  Ne7 {[%clk 0:13:30]} 10. c3 {[%clk 0:13:21]}  O-O {[%clk 0:13:01]} 11. Be2 {[%clk 0:11:37]}  Qc8 {[%clk 0:13:01]} 12. O-O {[%clk 0:11:37]}  d6 {[%clk 0:11:53]} 13. Bg5 {[%clk 0:10:45]}  Re8 {[%clk 0:11:34]} 14. Re1 {[%clk 0:10:45]}  Bb7 {[%clk 0:11:34]} 15. Nd2 {[%clk 0:09:49]}  Nd7 {[%clk 0:10:48]} 16. Bf3 {[%clk 0:09:49]}  Nf5 {[%clk 0:10:14]} 17. Bf4 {[%clk 0:08:25]}  d5 {[%clk 0:07:49]} 18. Nb3 {[%clk 0:03:18]}  c5 {[%clk 0:07:49]} 19. dxc5 {[%clk 0:03:18]}  Nxc5 {[%clk 0:07:49]} 20. Nxc5 {[%clk 0:03:18]}  Qxc5 {[%clk 0:07:49]} 21. Be5 {[%clk 0:03:18]}  Bxe5 {[%clk 0:05:28]} 22. Rxe5 {[%clk 0:02:32]}  Nd6 {[%clk 0:05:28]} 23. Re2 {[%clk 0:02:32]}  Nc4 {[%clk 0:05:28]} 24. Qd4 {[%clk 0:01:44]}  Rac8 {[%clk 0:04:06]} 25. Qxc5 {[%clk 0:01:14]}  Rxc5 {[%clk 0:04:06]} 26. Nd3 {[%clk 0:01:14]}  Rxa5 {[%clk 0:02:59]} 27. Rxa5 {[%clk 0:00:22]}  Nxa5 {[%clk 0:02:59]} 28. b4 {[%clk 0:00:22]}  Nc4 {[%clk 0:02:59]} 29. Nc5 {[%clk 0:00:22]}  Bc6 {[%clk 0:02:59]} 30. Ra2 {[%clk 0:00:22]}  Bb5 {[%clk 0:02:59]} 31. Be2 {[%clk 0:00:22]}  Rd8 {[%clk 0:01:21]} 32. f3 {[%clk 0:00:29]}  d4 {[%clk 0:01:21]} 33. cxd4 {[%clk 0:00:29]}  Rxd4 {[%clk 0:01:21]} 34. Nxa6 {[%clk 0:00:29]}  Bxa6 {[%clk 0:01:21]} 35. Rxa6 {[%clk 0:00:29]}  Ne3 {[%clk 0:01:21]} 36. b5 {[%clk 0:00:29]}  Rb4 {[%clk 0:01:21]} 37. Rc6 {[%clk 0:00:29]}  Rb2 {[%clk 0:01:21]} 38. Kf2 {[%clk 0:00:28]}  Nf5 {[%clk 0:00:45]} 39. Kf1 {[%clk 0:00:28]}  Kg7 {[%clk 0:00:45]} 40. Rc5 {[%clk 0:00:28]}  Kf6 {[%clk 0:00:45]} 41. Rc7 {[%clk 0:00:28]}  h5 {[%clk 0:00:45]} 42. Ke1 {[%clk 0:00:28]}  Ne3 {[%clk 0:00:45]} 43. g3 {[%clk 0:00:28]}  Nc2+ {[%clk 0:00:45]} 44. Kd2 {[%clk 0:00:28]}  Nd4+ {[%clk 0:00:45]} 45. Kc3 {[%clk 0:00:28]}  Rc2+ {[%clk 0:00:45]} 46. Kxd4 {[%clk 0:00:28]}  Rxc7 {[%clk 0:00:45]} 47. f4 {[%clk 0:00:13]}  Ke7 {[%clk 0:00:48]} 48. Bf3 {[%clk 0:00:13]}  Rc2 {[%clk 0:00:25]} 49. h3 {[%clk 0:00:12]}  Rb2 {[%clk 0:00:25]} 50. Kc4 {[%clk 0:00:12]}  Kd6 {[%clk 0:00:25]} 51. Bc6 {[%clk 0:00:12]}  Rh2 {[%clk 0:00:25]} 52. h4 {[%clk 0:00:12]}  Rh3 {[%clk 0:00:25]} 53. Be8 {[%clk 0:00:12]}  Rxg3 {[%clk 0:00:25]} 54. b6 {[%clk 0:00:12]}  Rg4 {[%clk 0:00:25]} 55. Kb5 {[%clk 0:00:03]}  Rxf4 {[%clk 0:00:25]} 56. Ka6 {[%clk 0:00:03]}  e5 {[%clk 0:00:25]} 57. Bb5 {[%clk 0:00:03]}  Rb4 {[%clk 0:00:25]} 58. Ka5 {[%clk 0:00:03]}  Kc5 {[%clk 0:00:25]} 0-1


[Site "http://www.Chess.com"]

[Event "FIDE World Rapid Chess Championship 2021"]
[White "Amin, Bassem"]
[Black "Niemann, Hans Moke"]
[WhiteFideId "10601457"]
[BlackFideId "2093596"]
[WhiteElo "2614"]
[BlackElo "2327"]
[Result "0-1"]
[Round "04"]
[TimeControl "900+10"]
[Date "2021.12.26"]
[WhiteClock "0:00:24"]
[BlackClock "0:09:39"]

1. Nf3 {[%clk 0:15:17]}  c5 {[%clk 0:15:14]} 2. e4 {[%clk 0:15:17]}  d6 {[%clk 0:15:14]} 3. g3 {[%clk 0:15:17]}  Nf6 {[%clk 0:15:14]} 4. d3 {[%clk 0:15:17]}  Nc6 {[%clk 0:15:14]} 5. Bg2 {[%clk 0:15:17]}  g6 {[%clk 0:15:14]} 6. O-O {[%clk 0:15:17]}  Bg7 {[%clk 0:15:14]} 7. Re1 {[%clk 0:15:17]}  O-O {[%clk 0:15:14]} 8. c3 {[%clk 0:15:17]}  e5 {[%clk 0:15:14]} 9. a4 {[%clk 0:15:17]}  h6 {[%clk 0:15:14]} 10. Na3 {[%clk 0:15:17]}  Re8 {[%clk 0:15:14]} 11. Bd2 {[%clk 0:15:24]}  d5 {[%clk 0:15:32]} 12. b4 {[%clk 0:15:24]}  dxe4 {[%clk 0:15:33]} 13. dxe4 {[%clk 0:15:24]}  Be6 {[%clk 0:15:33]} 14. Qb1 {[%clk 0:15:18]}  Rc8 {[%clk 0:14:54]} 15. Be3 {[%clk 0:15:18]}  cxb4 {[%clk 0:14:27]} 16. cxb4 {[%clk 0:12:03]}  Ng4 {[%clk 0:14:27]} 17. Rd1 {[%clk 0:12:10]}  Qf6 {[%clk 0:14:29]} 18. Bc5 {[%clk 0:07:26]}  b6 {[%clk 0:14:00]} 19. b5 {[%clk 0:07:23]}  Na5 {[%clk 0:13:59]} 20. Bb4 {[%clk 0:07:23]}  Nb3 {[%clk 0:13:59]} 21. h3 {[%clk 0:07:23]}  Nxa1 {[%clk 0:13:59]} 22. Qxa1 {[%clk 0:07:23]}  Nxf2 {[%clk 0:12:47]} 23. Kxf2 {[%clk 0:07:27]}  Red8 {[%clk 0:12:14]} 24. Bf1 {[%clk 0:05:10]}  Bb3 {[%clk 0:12:14]} 25. Rxd8+ {[%clk 0:05:12]}  Qxd8 {[%clk 0:12:10]} 26. Qb2 {[%clk 0:05:12]}  Be6 {[%clk 0:12:10]} 27. Nd2 {[%clk 0:05:12]}  h5 {[%clk 0:11:32]} 28. Nac4 {[%clk 0:03:44]}  h4 {[%clk 0:11:32]} 29. g4 {[%clk 0:03:44]}  Qf6+ {[%clk 0:11:32]} 30. Kg2 {[%clk 0:03:44]}  Qf4 {[%clk 0:11:32]} 31. Qb3 {[%clk 0:03:44]}  f5 {[%clk 0:11:32]} 32. gxf5 {[%clk 0:03:44]}  gxf5 {[%clk 0:11:32]} 33. Qe3 {[%clk 0:02:35]}  fxe4 {[%clk 0:11:55]} 34. Bd6 {[%clk 0:02:35]}  Bd5 {[%clk 0:11:30]} 35. Be2 {[%clk 0:01:07]}  Bh6 {[%clk 0:10:36]} 36. Bg4 {[%clk 0:01:14]}  Rxc4 {[%clk 0:10:36]} 37. Nxc4 {[%clk 0:01:14]}  Bxc4 {[%clk 0:10:36]} 38. Qf2 {[%clk 0:01:14]}  Bd5 {[%clk 0:10:36]} 39. Qxh4 {[%clk 0:00:24]}  e3+ {[%clk 0:09:39]} 40. Kg1 {[%clk 0:00:24]}  Bg5 {[%clk 0:09:39]} 41. Qe1 {[%clk 0:00:24]}  e2 {[%clk 0:09:39]} 42. Bxe2 {[%clk 0:00:24]}  Bh4 {[%clk 0:09:39]} 0-1


[Site "http://www.Chess.com"]

[Event "FIDE World Rapid Chess Championship 2021"]
[White "Hovhannisyan, Robert"]
[Black "Kosakowski, Jakub"]
[WhiteFideId "13302507"]
[BlackFideId "1185080"]
[WhiteElo "2613"]
[BlackElo "2304"]
[Result "1/2-1/2"]
[Round "04"]
[TimeControl "900+10"]
[Date "2021.12.26"]
[WhiteClock "0:00:27"]
[BlackClock "0:00:53"]

1. e4 {[%clk 0:15:17]}  c5 {[%clk 0:15:00]} 2. Nf3 {[%clk 0:15:17]}  d6 {[%clk 0:15:00]} 3. d4 {[%clk 0:15:17]}  cxd4 {[%clk 0:15:00]} 4. Nxd4 {[%clk 0:15:17]}  Nf6 {[%clk 0:15:00]} 5. Nc3 {[%clk 0:15:17]}  a6 {[%clk 0:15:00]} 6. Be2 {[%clk 0:15:17]}  e5 {[%clk 0:15:00]} 7. Nb3 {[%clk 0:15:17]}  Be7 {[%clk 0:15:00]} 8. Be3 {[%clk 0:15:17]}  Be6 {[%clk 0:15:00]} 9. Qd3 {[%clk 0:15:17]}  O-O {[%clk 0:15:00]} 10. O-O {[%clk 0:15:17]}  Nbd7 {[%clk 0:15:00]} 11. a4 {[%clk 0:15:17]}  Rc8 {[%clk 0:15:00]} 12. a5 {[%clk 0:15:17]}  Qc7 {[%clk 0:15:10]} 13. Rfd1 {[%clk 0:16:39]}  Nc5 {[%clk 0:15:10]} 14. Nxc5 {[%clk 0:16:39]}  dxc5 {[%clk 0:15:10]} 15. Nd5 {[%clk 0:16:09]}  Bxd5 {[%clk 0:13:10]} 16. exd5 {[%clk 0:16:09]}  Ne8 {[%clk 0:13:10]} 17. c4 {[%clk 0:16:11]}  Nd6 {[%clk 0:13:10]} 18. b4 {[%clk 0:16:11]}  e4 {[%clk 0:12:28]} 19. Qb1 {[%clk 0:15:06]}  Nf5 {[%clk 0:12:28]} 20. Bxc5 {[%clk 0:15:06]}  Bxc5 {[%clk 0:12:28]} 21. bxc5 {[%clk 0:15:06]}  Qxc5 {[%clk 0:12:28]} 22. Qxe4 {[%clk 0:13:52]}  g6 {[%clk 0:11:26]} 23. Qb1 {[%clk 0:13:52]}  Nd6 {[%clk 0:11:20]} 24. Bf1 {[%clk 0:12:25]}  Rc7 {[%clk 0:10:31]} 25. Qb6 {[%clk 0:11:37]}  Rfc8 {[%clk 0:08:46]} 26. Qxc5 {[%clk 0:11:37]}  Rxc5 {[%clk 0:08:31]} 27. Ra4 {[%clk 0:11:37]}  Nxc4 {[%clk 0:08:38]} 28. Bxc4 {[%clk 0:08:31]}  Rxc4 {[%clk 0:08:38]} 29. Rxc4 {[%clk 0:08:31]}  Rxc4 {[%clk 0:08:38]} 30. d6 {[%clk 0:08:31]}  Rc8 {[%clk 0:08:38]} 31. g4 {[%clk 0:08:27]}  Rd8 {[%clk 0:05:52]} 32. Kg2 {[%clk 0:07:46]}  f6 {[%clk 0:04:51]} 33. f4 {[%clk 0:07:46]}  Kf7 {[%clk 0:03:21]} 34. f5 {[%clk 0:05:03]}  gxf5 {[%clk 0:03:21]} 35. gxf5 {[%clk 0:05:03]}  Ke8 {[%clk 0:03:21]} 36. Re1+ {[%clk 0:05:03]}  Kd7 {[%clk 0:03:21]} 37. Re6 {[%clk 0:05:03]}  Rc8 {[%clk 0:03:21]} 38. Rxf6 {[%clk 0:05:09]}  Rc5 {[%clk 0:02:09]} 39. Kf3 {[%clk 0:04:45]}  Rxa5 {[%clk 0:02:13]} 40. Kf4 {[%clk 0:03:50]}  Ra2 {[%clk 0:02:20]} 41. Rh6 {[%clk 0:03:50]}  b5 {[%clk 0:01:22]} 42. h4 {[%clk 0:00:57]}  b4 {[%clk 0:01:22]} 43. Ke5 {[%clk 0:00:57]}  Ra5+ {[%clk 0:01:22]} 44. Ke4 {[%clk 0:00:57]}  b3 {[%clk 0:01:22]} 45. Rxh7+ {[%clk 0:00:57]}  Kxd6 {[%clk 0:01:22]} 46. Rb7 {[%clk 0:00:16]}  Ra4+ {[%clk 0:00:39]} 47. Kd3 {[%clk 0:00:16]}  Rxh4 {[%clk 0:00:39]} 48. f6 {[%clk 0:00:27]}  Ke6 {[%clk 0:00:53]} 49. f7 {[%clk 0:00:27]}  Rf4 {[%clk 0:00:53]} 50. Rxb3 {[%clk 0:00:27]}  Kxf7 {[%clk 0:00:53]} 1/2-1/2


[Site "http://www.Chess.com"]

[Event "FIDE World Rapid Chess Championship 2021"]
[White "Dudin, Gleb"]
[Black "Erdos, Viktor"]
[WhiteFideId "34184934"]
[BlackFideId "719978"]
[WhiteElo "2247"]
[BlackElo "2601"]
[Result "1/2-1/2"]
[Round "04"]
[TimeControl "900+10"]
[Date "2021.12.26"]
[WhiteClock "0:00:54"]
[BlackClock "0:00:26"]

1. d4 {[%clk 0:15:23]}  Nf6 {[%clk 0:15:27]} 2. c4 {[%clk 0:15:23]}  g6 {[%clk 0:15:27]} 3. Nc3 {[%clk 0:15:23]}  d5 {[%clk 0:15:27]} 4. cxd5 {[%clk 0:15:23]}  Nxd5 {[%clk 0:15:27]} 5. e4 {[%clk 0:15:23]}  Nxc3 {[%clk 0:15:27]} 6. bxc3 {[%clk 0:15:23]}  Bg7 {[%clk 0:15:27]} 7. Nf3 {[%clk 0:15:23]}  c5 {[%clk 0:15:27]} 8. Be3 {[%clk 0:15:23]}  Qa5 {[%clk 0:15:27]} 9. Qd2 {[%clk 0:15:23]}  O-O {[%clk 0:15:27]} 10. Rc1 {[%clk 0:15:23]}  Nd7 {[%clk 0:15:27]} 11. Bd3 {[%clk 0:16:09]}  e5 {[%clk 0:16:07]} 12. d5 {[%clk 0:13:52]}  b5 {[%clk 0:15:08]} 13. c4 {[%clk 0:11:02]}  b4 {[%clk 0:12:09]} 14. h4 {[%clk 0:11:02]}  f5 {[%clk 0:12:09]} 15. Bh6 {[%clk 0:08:59]}  fxe4 {[%clk 0:11:58]} 16. Bxe4 {[%clk 0:04:17]}  Nf6 {[%clk 0:10:27]} 17. Bb1 {[%clk 0:04:05]}  Bxh6 {[%clk 0:02:54]} 18. Qxh6 {[%clk 0:03:28]}  Ng4 {[%clk 0:02:54]} 19. Qd2 {[%clk 0:03:27]}  e4 {[%clk 0:03:03]} 20. Bxe4 {[%clk 0:03:27]}  Re8 {[%clk 0:03:03]} 21. Ng5 {[%clk 0:03:27]}  h6 {[%clk 0:03:19]} 22. Ne6 {[%clk 0:02:58]}  Bxe6 {[%clk 0:03:19]} 23. dxe6 {[%clk 0:02:58]}  Rxe6 {[%clk 0:03:19]} 24. O-O {[%clk 0:02:58]}  Qc7 {[%clk 0:03:19]} 25. g3 {[%clk 0:02:58]}  Rd8 {[%clk 0:03:19]} 26. Bd5 {[%clk 0:02:33]}  Kh7 {[%clk 0:00:31]} 27. h5 {[%clk 0:02:29]}  Nf6 {[%clk 0:00:29]} 28. hxg6+ {[%clk 0:02:29]}  Kg7 {[%clk 0:00:29]} 29. Rfe1 {[%clk 0:02:29]}  Ree8 {[%clk 0:00:29]} 30. Rxe8 {[%clk 0:00:55]}  Rxe8 {[%clk 0:00:33]} 31. Bf7 {[%clk 0:00:55]}  Re4 {[%clk 0:00:33]} 32. Qc2 {[%clk 0:00:55]}  Qe5 {[%clk 0:00:33]} 33. Qa4 {[%clk 0:00:55]}  Re1+ {[%clk 0:00:33]} 34. Rxe1 {[%clk 0:00:55]}  Qxe1+ {[%clk 0:00:33]} 35. Kg2 {[%clk 0:00:55]}  Qe4+ {[%clk 0:00:33]} 36. Kg1 {[%clk 0:00:55]}  Qe1+ {[%clk 0:00:33]} 37. Kg2 {[%clk 0:00:55]}  Qe4+ {[%clk 0:00:19]} 38. Kg1 {[%clk 0:00:54]}  Qe1+ {[%clk 0:00:26]} 1/2-1/2


[Site "http://www.Chess.com"]

[Event "FIDE World Rapid Chess Championship 2021"]
[White "Pichot, Alan"]
[Black "Artemiev, Vladislav"]
[WhiteFideId "110973"]
[BlackFideId "24101605"]
[WhiteElo "2523"]
[BlackElo "2714"]
[Result "1/2-1/2"]
[Round "04"]
[TimeControl "900+10"]
[Date "2021.12.26"]
[WhiteClock "0:01:35"]
[BlackClock "0:00:19"]

1. e4 {[%clk 0:15:25]}  e5 {[%clk 0:15:23]} 2. Nf3 {[%clk 0:15:25]}  Nc6 {[%clk 0:15:23]} 3. Bb5 {[%clk 0:15:25]}  g6 {[%clk 0:15:23]} 4. c3 {[%clk 0:15:34]}  a6 {[%clk 0:15:23]} 5. Bxc6 {[%clk 0:15:34]}  dxc6 {[%clk 0:15:23]} 6. d4 {[%clk 0:15:34]}  exd4 {[%clk 0:15:23]} 7. cxd4 {[%clk 0:15:34]}  Bg7 {[%clk 0:15:23]} 8. h3 {[%clk 0:15:34]}  Ne7 {[%clk 0:15:23]} 9. O-O {[%clk 0:15:34]}  O-O {[%clk 0:16:04]} 10. Nc3 {[%clk 0:15:22]}  h6 {[%clk 0:16:04]} 11. Bf4 {[%clk 0:15:22]}  g5 {[%clk 0:16:04]} 12. Be5 {[%clk 0:15:22]}  Ng6 {[%clk 0:15:34]} 13. Bg3 {[%clk 0:13:05]}  g4 {[%clk 0:07:08]} 14. hxg4 {[%clk 0:09:28]}  Bxg4 {[%clk 0:07:08]} 15. Qd3 {[%clk 0:09:28]}  h5 {[%clk 0:07:16]} 16. Rad1 {[%clk 0:08:39]}  h4 {[%clk 0:07:16]} 17. Bh2 {[%clk 0:08:39]}  h3 {[%clk 0:07:16]} 18. gxh3 {[%clk 0:07:42]}  Bxh3 {[%clk 0:04:43]} 19. Rfe1 {[%clk 0:07:42]}  Bg4 {[%clk 0:04:43]} 20. e5 {[%clk 0:07:42]}  Qd7 {[%clk 0:03:29]} 21. d5 {[%clk 0:07:03]}  cxd5 {[%clk 0:02:19]} 22. Nxd5 {[%clk 0:07:03]}  Rad8 {[%clk 0:02:19]} 23. Nf6+ {[%clk 0:03:18]}  Bxf6 {[%clk 0:01:33]} 24. Qxd7 {[%clk 0:03:18]}  Rxd7 {[%clk 0:01:33]} 25. Rxd7 {[%clk 0:03:18]}  Bxd7 {[%clk 0:01:33]} 26. exf6 {[%clk 0:03:18]}  c5 {[%clk 0:01:33]} 27. Bd6 {[%clk 0:02:36]}  Rc8 {[%clk 0:00:28]} 28. Ne5 {[%clk 0:02:36]}  Bf5 {[%clk 0:00:28]} 29. Nxg6 {[%clk 0:02:36]}  Bxg6 {[%clk 0:00:28]} 30. Re5 {[%clk 0:02:36]}  c4 {[%clk 0:00:28]} 31. Bb4 {[%clk 0:02:36]}  Rc6 {[%clk 0:00:28]} 32. Bc3 {[%clk 0:02:36]}  Kh7 {[%clk 0:00:18]} 33. Re7 {[%clk 0:01:56]}  b5 {[%clk 0:00:24]} 34. f4 {[%clk 0:01:56]}  b4 {[%clk 0:00:24]} 35. Bxb4 {[%clk 0:01:56]}  Rxf6 {[%clk 0:00:24]} 36. Bd2 {[%clk 0:01:56]}  Bb1 {[%clk 0:00:24]} 37. a3 {[%clk 0:01:56]}  Kg6 {[%clk 0:00:24]} 38. Kf2 {[%clk 0:01:56]}  Rd6 {[%clk 0:00:24]} 39. Bc3 {[%clk 0:01:56]}  Bf5 {[%clk 0:00:24]} 40. Re1 {[%clk 0:01:31]}  f6 {[%clk 0:00:24]} 41. Re7 {[%clk 0:01:35]}  Be6 {[%clk 0:00:24]} 42. Re8 {[%clk 0:01:35]}  Kf5 {[%clk 0:00:29]} 43. Rf8 {[%clk 0:01:35]}  Bd7 {[%clk 0:00:29]} 44. Ke3 {[%clk 0:01:35]}  Rd3+ {[%clk 0:00:29]} 45. Ke2 {[%clk 0:01:35]}  Rd6 {[%clk 0:00:29]} 46. Ke3 {[%clk 0:01:35]}  Rd3+ {[%clk 0:00:19]} 1/2-1/2


[Site "http://www.Chess.com"]

[Event "FIDE World Rapid Chess Championship 2021"]
[White "Sargissian, Gabriel"]
[Black "Murzin, Volodar"]
[WhiteFideId "13300881"]
[BlackFideId "44155573"]
[WhiteElo "2693"]
[BlackElo "2523"]
[Result "1-0"]
[Round "04"]
[TimeControl "900+10"]
[Date "2021.12.26"]
[WhiteClock "0:07:08"]
[BlackClock "0:00:33"]

1. d4 {[%clk 0:15:44]}  Nf6 {[%clk 0:15:34]} 2. c4 {[%clk 0:15:44]}  g6 {[%clk 0:15:34]} 3. Nc3 {[%clk 0:15:44]}  Bg7 {[%clk 0:15:34]} 4. e4 {[%clk 0:15:44]}  O-O {[%clk 0:15:34]} 5. Nf3 {[%clk 0:15:44]}  d6 {[%clk 0:15:34]} 6. Be2 {[%clk 0:15:44]}  e5 {[%clk 0:15:34]} 7. O-O {[%clk 0:15:44]}  Nc6 {[%clk 0:15:34]} 8. d5 {[%clk 0:15:44]}  Ne7 {[%clk 0:15:34]} 9. b4 {[%clk 0:15:44]}  Nh5 {[%clk 0:15:34]} 10. Re1 {[%clk 0:15:44]}  Nf4 {[%clk 0:15:34]} 11. Bxf4 {[%clk 0:16:18]}  exf4 {[%clk 0:14:53]} 12. Rc1 {[%clk 0:16:18]}  h6 {[%clk 0:14:22]} 13. c5 {[%clk 0:13:55]}  g5 {[%clk 0:14:22]} 14. Nd4 {[%clk 0:13:18]}  Bxd4 {[%clk 0:13:47]} 15. Qxd4 {[%clk 0:10:45]}  Ng6 {[%clk 0:13:47]} 16. Nb5 {[%clk 0:10:49]}  a6 {[%clk 0:11:11]} 17. Na3 {[%clk 0:10:49]}  g4 {[%clk 0:10:44]} 18. Nc4 {[%clk 0:08:45]}  Qe7 {[%clk 0:06:39]} 19. Bf1 {[%clk 0:08:33]}  h5 {[%clk 0:06:39]} 20. e5 {[%clk 0:08:33]}  dxe5 {[%clk 0:06:39]} 21. Nxe5 {[%clk 0:08:33]}  Qf6 {[%clk 0:06:39]} 22. Rcd1 {[%clk 0:08:33]}  f3 {[%clk 0:06:39]} 23. Nxf3 {[%clk 0:07:08]}  Qd8 {[%clk 0:00:33]} 1-0


[Site "http://www.Chess.com"]

[Event "FIDE World Rapid Chess Championship 2021"]
[White "Christiansen, Johan-Sebastian"]
[Black "Saric, Ivan"]
[WhiteFideId "1512668"]
[BlackFideId "14508150"]
[WhiteElo "2522"]
[BlackElo "2684"]
[Result "0-1"]
[Round "04"]
[TimeControl "900+10"]
[Date "2021.12.26"]
[WhiteClock "0:00:46"]
[BlackClock "0:00:07"]

1. c4 {[%clk 0:15:00]}  e5 {[%clk 0:15:00]} 2. g3 {[%clk 0:15:00]}  c6 {[%clk 0:15:00]} 3. Nf3 {[%clk 0:15:00]}  e4 {[%clk 0:15:00]} 4. Nd4 {[%clk 0:15:00]}  d5 {[%clk 0:15:00]} 5. cxd5 {[%clk 0:15:00]}  Qxd5 {[%clk 0:15:00]} 6. Nc2 {[%clk 0:15:00]}  Nf6 {[%clk 0:15:00]} 7. Nc3 {[%clk 0:15:00]}  Qe5 {[%clk 0:15:00]} 8. Bg2 {[%clk 0:15:00]}  Na6 {[%clk 0:15:00]} 9. O-O {[%clk 0:15:00]}  Be7 {[%clk 0:15:00]} 10. Nxe4 {[%clk 0:13:51]}  Nxe4 {[%clk 0:14:08]} 11. f4 {[%clk 0:13:51]}  Qe6 {[%clk 0:14:10]} 12. f5 {[%clk 0:12:56]}  Qd5 {[%clk 0:14:10]} 13. d3 {[%clk 0:12:55]}  Bxf5 {[%clk 0:11:08]} 14. dxe4 {[%clk 0:02:32]}  Bxe4 {[%clk 0:11:09]} 15. Qxd5 {[%clk 0:02:32]}  Bxd5 {[%clk 0:11:09]} 16. Bxd5 {[%clk 0:02:32]}  cxd5 {[%clk 0:11:09]} 17. Rf5 {[%clk 0:02:32]}  Rd8 {[%clk 0:11:09]} 18. Be3 {[%clk 0:02:32]}  g6 {[%clk 0:11:09]} 19. Rf4 {[%clk 0:01:55]}  Nc5 {[%clk 0:10:33]} 20. Rd1 {[%clk 0:01:55]}  Ne6 {[%clk 0:10:33]} 21. Ra4 {[%clk 0:01:55]}  a6 {[%clk 0:10:33]} 22. Ra5 {[%clk 0:01:55]}  Bf6 {[%clk 0:08:22]} 23. Raxd5 {[%clk 0:00:51]}  Rxd5 {[%clk 0:07:06]} 24. Rxd5 {[%clk 0:00:51]}  Bxb2 {[%clk 0:07:06]} 25. Rd3 {[%clk 0:00:51]}  Be5 {[%clk 0:07:06]} 26. Rb3 {[%clk 0:00:51]}  Nd8 {[%clk 0:07:06]} 27. a4 {[%clk 0:01:08]}  Kd7 {[%clk 0:04:40]} 28. Nb4 {[%clk 0:01:08]}  Re8 {[%clk 0:04:40]} 29. Kf2 {[%clk 0:01:08]}  Bd6 {[%clk 0:03:35]} 30. Nd5 {[%clk 0:00:27]}  Re5 {[%clk 0:03:34]} 31. Nb6+ {[%clk 0:00:33]}  Ke6 {[%clk 0:03:34]} 32. Bf4 {[%clk 0:00:33]}  Re4 {[%clk 0:03:34]} 33. Kf3 {[%clk 0:00:33]}  f5 {[%clk 0:03:34]} 34. Rd3 {[%clk 0:00:33]}  Nf7 {[%clk 0:02:25]} 35. Nd5 {[%clk 0:00:13]}  Be5 {[%clk 0:02:19]} 36. a5 {[%clk 0:00:13]}  g5 {[%clk 0:02:19]} 37. Bd2 {[%clk 0:00:13]}  g4+ {[%clk 0:02:19]} 38. Kg2 {[%clk 0:00:13]}  Rxe2+ {[%clk 0:02:19]} 39. Kg1 {[%clk 0:00:13]}  h5 {[%clk 0:02:19]} 40. Bf4 {[%clk 0:00:14]}  Re4 {[%clk 0:01:10]} 41. Nb6 {[%clk 0:00:14]}  Bxf4 {[%clk 0:01:10]} 42. gxf4 {[%clk 0:00:14]}  Rxf4 {[%clk 0:01:10]} 43. Nd5 {[%clk 0:00:14]}  Ra4 {[%clk 0:01:10]} 44. Nc7+ {[%clk 0:00:14]}  Ke5 {[%clk 0:01:10]} 45. Rd5+ {[%clk 0:00:14]}  Ke4 {[%clk 0:01:10]} 46. Rc5 {[%clk 0:00:14]}  Ne5 {[%clk 0:01:10]} 47. Ne6 {[%clk 0:00:14]}  Nf3+ {[%clk 0:01:10]} 48. Kf1 {[%clk 0:00:32]}  Nxh2+ {[%clk 0:01:28]} 49. Kg2 {[%clk 0:00:59]}  Ra2+ {[%clk 0:01:28]} 50. Kg3 {[%clk 0:00:59]}  f4+ {[%clk 0:01:28]} 51. Kh4 {[%clk 0:00:59]}  Nf3+ {[%clk 0:01:28]} 52. Kxh5 {[%clk 0:00:59]}  g3 {[%clk 0:01:28]} 53. Rc4+ {[%clk 0:00:46]}  Kd5 {[%clk 0:00:07]} 54. Rxf4 {[%clk 0:00:46]}  g2 {[%clk 0:00:07]} 0-1


[Site "http://www.Chess.com"]

[Event "FIDE World Rapid Chess Championship 2021"]
[White "Smirin, Ilia"]
[Black "Shevchenko, Kirill"]
[WhiteFideId "2801990"]
[BlackFideId "14129574"]
[WhiteElo "2663"]
[BlackElo "2508"]
[Result "0-1"]
[Round "04"]
[TimeControl "900+10"]
[Date "2021.12.26"]
[WhiteClock "0:00:45"]
[BlackClock "0:00:13"]

1. e4 {[%clk 0:15:42]}  c5 {[%clk 0:15:36]} 2. Nf3 {[%clk 0:15:42]}  d6 {[%clk 0:15:36]} 3. d4 {[%clk 0:15:42]}  cxd4 {[%clk 0:15:36]} 4. Nxd4 {[%clk 0:15:42]}  Nf6 {[%clk 0:15:36]} 5. Nc3 {[%clk 0:15:42]}  a6 {[%clk 0:15:45]} 6. h3 {[%clk 0:15:42]}  e5 {[%clk 0:15:45]} 7. Nf3 {[%clk 0:15:42]}  Be7 {[%clk 0:15:45]} 8. g4 {[%clk 0:15:42]}  h6 {[%clk 0:15:16]} 9. g5 {[%clk 0:15:48]}  hxg5 {[%clk 0:14:15]} 10. Bxg5 {[%clk 0:15:48]}  Be6 {[%clk 0:14:17]} 11. h4 {[%clk 0:13:51]}  Nbd7 {[%clk 0:13:49]} 12. Bh3 {[%clk 0:13:51]}  Rc8 {[%clk 0:13:48]} 13. Bxf6 {[%clk 0:12:10]}  Nxf6 {[%clk 0:12:39]} 14. Bxe6 {[%clk 0:12:10]}  fxe6 {[%clk 0:12:39]} 15. Ng5 {[%clk 0:12:10]}  Qb6 {[%clk 0:12:27]} 16. Rb1 {[%clk 0:08:28]}  d5 {[%clk 0:12:27]} 17. exd5 {[%clk 0:08:29]}  exd5 {[%clk 0:07:20]} 18. Rh3 {[%clk 0:08:29]}  Qc6 {[%clk 0:07:20]} 19. Qf3 {[%clk 0:03:52]}  O-O {[%clk 0:06:09]} 20. Qf5 {[%clk 0:03:52]}  d4 {[%clk 0:04:59]} 21. Nce4 {[%clk 0:02:42]}  Qxc2 {[%clk 0:04:59]} 22. Ra1 {[%clk 0:02:42]}  Rc7 {[%clk 0:04:08]} 23. Kf1 {[%clk 0:01:33]}  Bd8 {[%clk 0:00:50]} 24. Re1 {[%clk 0:01:26]}  Qc4+ {[%clk 0:00:47]} 25. Kg1 {[%clk 0:01:26]}  g6 {[%clk 0:00:47]} 26. Qxe5 {[%clk 0:01:26]}  Nxe4 {[%clk 0:00:47]} 27. Nxe4 {[%clk 0:01:26]}  Re7 {[%clk 0:00:47]} 28. Qd6 {[%clk 0:01:26]}  Re6 {[%clk 0:00:14]} 29. Qd7 {[%clk 0:00:41]}  Qc6 {[%clk 0:00:13]} 30. Qxc6 {[%clk 0:00:45]}  Rxc6 {[%clk 0:00:13]} 31. Rd3 {[%clk 0:00:45]}  Bxh4 {[%clk 0:00:13]} 32. Rxd4 {[%clk 0:00:45]}  Re6 {[%clk 0:00:13]} 33. Re2 {[%clk 0:00:45]}  Rf4 {[%clk 0:00:13]} 34. Nc5 {[%clk 0:00:45]}  Bxf2+ {[%clk 0:00:13]} 35. Rxf2 {[%clk 0:00:45]}  Re1+ {[%clk 0:00:13]} 36. Kg2 {[%clk 0:00:45]}  Rxd4 {[%clk 0:00:13]} 0-1


[Site "http://www.Chess.com"]